lending/lending_fUSD_20251016
["ID","MTS","AMOUNT","RATE_DAILY","PERIOD"]
[391504251,1760623833663,-2716.13,0.00019178,2]
[391504252,1760623833672,-2716.13,0.00019178,2]
[391504253,1760623833682,-2716.13,0.00019178,2]
[391504254,1760623833691,-2716.13,0.00019178,2]
[391504255,1760623833701,-2716.13,0.00019178,2]
[391504256,1760623833711,-2716.13,0.00019178,2]
[391504257,1760623833722,-2716.13,0.00019178,2]
[391504258,1760623833732,-2716.13,0.00019178,2]
[391504259,1760623833741,-2716.13,0.00019178,2]
[391504260,1760623833751,-2716.13,0.00019178,2]
[391504261,1760623833760,-2716.13,0.00019178,2]
[391504262,1760623833770,-2716.13,0.00019178,2]
[391504263,1760623833779,-2716.13,0.00019178,2]
[391504264,1760623833789,-2716.13,0.00019178,2]
[391504265,1760623833798,-2716.13,0.00019178,2]
[391504266,1760623833807,-2716.13,0.00019178,2]
[391504267,1760623833820,-2716.32394049,0.00019178,2]
[391504268,1760623833829,-1059.02,0.00019178,2]
[391504269,1760623833839,-1059.02,0.00019178,2]
[391504270,1760623833849,-1059.02,0.00019178,2]
[391504271,1760623833861,-1059.02,0.00019178,2]
[391504272,1760623833871,-1059.02,0.00019178,2]
[391504273,1760623833880,-1059.02,0.00019178,2]
[391504274,1760623833891,-1059.02,0.00019178,2]
[391504275,1760623833903,-1059.02,0.00019178,2]
[391504276,1760623833912,-1059.02,0.00019178,2]
[391504277,1760623833921,-1059.02,0.00019178,2]
[391504278,1760623833931,-1059.02,0.00019178,2]
[391504279,1760623833940,-1059.02,0.00019178,2]
[391504280,1760623833949,-1059.02,0.00019178,2]
[391504281,1760623833958,-1059.02,0.00019178,2]
[391504282,1760623833970,-1059.02,0.00019178,2]
[391504283,1760623833981,-1059.02,0.00019178,2]
[391504284,1760623833992,-1059.02,0.00019178,2]
[391504285,1760623834002,-1059.02,0.00019178,2]
[391504286,1760623834012,-1059.02,0.00019178,2]
[391504287,1760623834022,-1059.02,0.00019178,2]
[391504288,1760623834032,-1059.02,0.00019178,2]
[391504289,1760623834041,-1059.02,0.00019178,2]
[391504290,1760623834051,-1059.02,0.00019178,2]
[391504291,1760623834061,-1059.22,0.00019178,2]
[391504292,1760623834071,-500.0,0.00019178,2]
[391504293,1760623834081,-500.0,0.00019296,2]
[391504294,1760623834091,-725.6536018,0.00019315,2]
[391504295,1760623834100,-5000.0,0.00019352,2]
[391504296,1760623834113,-1089.21901182,0.00019399,2]
[391504297,1760623834122,-500.0,0.00019432,2]
[391504298,1760623834132,-200.0,0.00019432,2]
[391504299,1760623834141,-161.77804293,0.00019433,2]
[391504300,1760623834151,-208.42,0.00019441,2]
[391504301,1760623834161,-500.0,0.00019451,2]
[391504302,1760623834170,-863.99,0.00019451,2]
[391504303,1760623834180,-500.0,0.00019451,2]
[391504304,1760623834189,-500.0,0.00019451,2]
[391504305,1760623834198,-500.0,0.00019451,2]
[391504306,1760623834208,-500.0,0.00019451,2]
[391504307,1760623834218,-1290.79,0.00019451,2]
[391504308,1760623834228,-500.0,0.00019451,2]
[391504309,1760623834237,-1264.56,0.00019451,2]
[391504310,1760623834246,-295.32,0.00019451,2]
[391504311,1760623834256,-942.55,0.00019451,2]
[391504312,1760623834266,-500.0,0.00019451,2]
[391504313,1760623834275,-500.0,0.00019451,2]
[391504314,1760623834285,-500.0,0.00019451,2]
[391504315,1760623834295,-599.69939483,0.00019451,2]
[391504316,1760623834304,-500.0,0.00019451,2]
[391504317,1760623834313,-500.0,0.00019451,2]
[391504318,1760623834323,-500.0,0.00019451,2]
[391504319,1760623834332,-500.0,0.00019451,2]
[391504320,1760623834350,-500.0,0.00019451,2]
[391504321,1760623834363,-500.0,0.00019451,2]
[391504322,1760623834372,-500.0,0.00019451,2]
[391504323,1760623834381,-500.0,0.00019451,2]
[391504324,1760623834391,-500.0,0.00019451,2]
[391504325,1760623834401,-500.0,0.00019451,2]
[391504326,1760623834411,-500.0,0.00019451,2]
[391504327,1760623834421,-500.0,0.00019452,2]
[391504328,1760623834430,-500.0,0.00019452,2]
[391504329,1760623834440,-500.0,0.00019452,2]
[391504330,1760623834450,-500.0,0.00019452,2]
[391504331,1760623834460,-500.0,0.00019452,2]
[391504332,1760623834470,-500.0,0.00019452,2]
[391504333,1760623834480,-640.45091003,0.00019452,2]
[391504334,1760623834490,-500.0,0.00019452,2]
[391504335,1760623834499,-500.0,0.00019452,2]
[391504336,1760623834509,-500.0,0.00019452,2]
[391504337,1760623834518,-500.0,0.00019452,2]
[391504338,1760623834527,-500.0,0.00019452,2]
[391504339,1760623834537,-500.0,0.00019452,2]
[391504340,1760623834547,-430.51999593,0.00019452,2]
[391504341,1760623834556,-500.0,0.00019452,2]
[391504342,1760623834566,-500.0,0.00019452,2]
[391504343,1760623834575,-500.0,0.00019452,2]
[391504344,1760623834585,-500.0,0.00019452,2]
[391504345,1760623834594,-500.0,0.00019452,2]
[391504346,1760623834612,-500.0,0.00019452,2]
[391504347,1760623834622,-500.0,0.00019452,2]
[391504348,1760623834631,-650.17,0.00019452,2]
[391504349,1760623834640,-500.0,0.00019452,2]
[391504350,1760623834650,-624.39468599,0.00019452,2]
[391504351,1760623834660,-618.32,0.00019452,2]
[391504352,1760623834670,-500.0,0.00019452,2]
[391504353,1760623834679,-500.0,0.00019452,2]
[391504354,1760623834689,-500.0,0.00019452,2]
[391504355,1760623834698,-500.0,0.00019452,2]
[391504356,1760623834708,-500.0,0.00019452,2]
[391504357,1760623834717,-150.0,0.00019452,2]
[391504358,1760623834727,-150.0,0.00019452,2]
[391504359,1760623834736,-200.0,0.00019452,2]
[391504360,1760623834745,-150.0,0.00019452,2]
[391504361,1760623834755,-150.0,0.00019452,2]
[391504362,1760623834764,-150.0,0.00019452,2]
[391504363,1760623834774,-150.0,0.00019452,2]
[391504364,1760623834784,-150.0,0.00019452,2]
[391504365,1760623834793,-150.0,0.00019452,2]
[391504366,1760623834803,-1969.057,0.00019504,2]
[391504367,1760623834814,-725.6536018,0.00019504,2]
[391504368,1760623834827,-150.0,0.00019507,2]
[391504369,1760623834836,-202.0218623,0.00019507,2]
[391504370,1760623834846,-200.0,0.00019507,2]
[391504371,1760623834855,-150.0,0.00019507,2]
[391504372,1760623834866,-150.0,0.00019562,2]
[391504373,1760623834875,-150.0,0.00019562,2]
[391504374,1760623834885,-500.0,0.00019568,2]
[391504375,1760623834897,-153.84660669,0.00019616,2]
[391504376,1760623834907,-150.0,0.00019616,2]
[391504377,1760623834916,-177.70319766,0.00019626,2]
[391504378,1760623834926,-803.44324741,0.00019626,2]
[391504379,1760623834935,-215.8466476,0.00019648,2]
[391504380,1760623834945,-250.0,0.00019671,2]
[391504381,1760623834954,-204.17546546,0.00019673,2]
[391504382,1760623834963,-1199.71155121,0.00019693,2]
[391504383,1760623834973,-500.0,0.00019703,2]
[391504384,1760623834983,-500.0,0.00019725,2]
[391504385,1760623834992,-863.99,0.00019725,2]
[391504386,1760623835001,-500.0,0.00019725,2]
[391504387,1760623835011,-500.0,0.00019725,2]
[391504388,1760623835020,-260.74831766,0.00019725,2]
[391504389,1760623835029,-500.0,0.00019725,2]
[391504390,1760623835038,-500.0,0.00019725,2]
[391504391,1760623835047,-1290.79,0.00019725,2]
[391504392,1760623835056,-500.0,0.00019725,2]
[391504393,1760623835066,-1264.56,0.00019725,2]
[391504394,1760623835075,-942.55,0.00019725,2]
[391504395,1760623835084,-500.0,0.00019725,2]
[391504396,1760623835093,-500.0,0.00019725,2]
[391504397,1760623835103,-500.0,0.00019725,2]
[391504398,1760623835112,-500.0,0.00019725,2]
[391504399,1760623835121,-500.0,0.00019725,2]
[391504400,1760623835130,-1001.8032,0.00019725,2]
[391504401,1760623835140,-500.0,0.00019725,2]
[391504402,1760623835152,-500.0,0.00019725,2]
[391504403,1760623835161,-500.0,0.00019725,2]
[391504404,1760623835170,-500.0,0.00019725,2]
[391504405,1760623835179,-500.0,0.00019725,2]
[391504406,1760623835189,-500.0,0.00019725,2]
[391504407,1760623835198,-500.0,0.00019725,2]
[391504408,1760623835208,-500.0,0.00019725,2]
[391504409,1760623835218,-498.84,0.00019725,2]
[391504410,1760623835227,-500.0,0.00019725,2]
[391504411,1760623835237,-400.69017929,0.00019726,2]
[391504412,1760623835246,-500.0,0.00019726,2]
[391504413,1760623835256,-599.92496716,0.00019726,2]
[391504414,1760623835265,-500.0,0.00019726,2]
[391504415,1760623835275,-506.34300582,0.00019726,2]
[391504416,1760623835285,-500.0,0.00019726,2]
[391504417,1760623835294,-500.0,0.00019726,2]
[391504418,1760623835304,-500.0,0.00019726,2]
[391504419,1760623835314,-500.0,0.00019726,2]
[391504420,1760623835323,-500.0,0.00019726,2]
[391504421,1760623835332,-500.0,0.00019726,2]
[391504422,1760623835342,-500.0,0.00019726,2]
[391504423,1760623835351,-500.0,0.00019726,2]
[391504424,1760623835360,-500.0,0.00019726,2]
[391504425,1760623835369,-500.0,0.00019726,2]
[391504426,1760623835379,-500.0,0.00019726,2]
[391504427,1760623835387,-500.0,0.00019726,2]
[391504428,1760623835637,-500.0,0.00019726,2]
[391504429,1760623835649,-500.0,0.00019726,2]
[391504430,1760623835659,-650.17,0.00019726,2]
[391504431,1760623835668,-500.0,0.00019726,2]
[391504432,1760623835678,-618.32,0.00019726,2]
[391504433,1760623835688,-500.0,0.00019726,2]
[391504434,1760623835696,-500.0,0.00019726,2]
[391504435,1760623835706,-500.0,0.00019726,2]
[391504436,1760623835716,-500.0,0.00019726,2]
[391504437,1760623835725,-500.0,0.00019726,2]
[391504438,1760623835734,-500.0,0.00019726,2]
[391504439,1760623835743,-500.0,0.00019726,2]
[391504440,1760623835753,-500.0,0.00019726,2]
[391504441,1760623835762,-500.0,0.00019726,2]
[391504442,1760623835771,-500.0,0.00019726,2]
[391504443,1760623835780,-181.07231161,0.00019726,2]
[391504444,1760623835788,-31659.3936033,0.00019726,2]
[391504445,1760623835805,-266029.49693688,0.00019726,2]
[391504446,1760623835816,-500.0,0.00019773,2]
[391504447,1760623835827,-500.0,0.00019773,2]
[391504448,1760623835836,-500.0,0.00019773,2]
[391504449,1760623835845,-500.0,0.00019773,2]
[391504450,1760623835855,-500.0,0.00019773,2]
[391504451,1760623835865,-150.0,0.00019775,4]
[391504452,1760623835875,-224.44009699,0.00019775,4]
[391504453,1760623835884,-150.0,0.00019775,4]
[391504454,1760623835897,-150.0,0.00019775,4]
[391504455,1760623835907,-150.00000001,0.00019775,4]
[391504456,1760623835916,-150.0,0.00019775,4]
[391504457,1760623835926,-154.17093705,0.00019775,4]
[391504458,1760623835936,-150.0,0.00019775,4]
[391504459,1760623835945,-8465.6164155,0.00019803,2]
[391504460,1760623835954,-1613.5122439,0.00019833,2]
[391504461,1760623835964,-500.0,0.00019839,2]
[391504462,1760623835974,-500.0,0.00019862,2]
[391504463,1760623835983,-40700.116625,0.00019863,2]
[391504464,1760623835993,-3293.4563453,0.00019863,2]
[391504465,1760623836002,-150.79,0.0001989,2]
[391504466,1760623836012,-725.65360182,0.00019961,2]
[391504467,1760623836021,-500.0,0.00019999,2]
[391504468,1760623836031,-863.99,0.00019999,2]
[391504469,1760623836041,-500.0,0.00019999,2]
[391504470,1760623836050,-500.0,0.00019999,2]
[391504471,1760623836060,-500.0,0.00019999,2]
[391504472,1760623836077,-1290.79,0.00019999,2]
[391504473,1760623836088,-500.0,0.00019999,2]
[391504474,1760623836098,-1264.56,0.00019999,2]
[391504475,1760623836110,-942.55,0.00019999,2]
[391504476,1760623836120,-500.0,0.00019999,2]
[391504477,1760623836130,-500.0,0.00019999,2]
[391504478,1760623836139,-244.07969586,0.00019999,2]
[391504479,1760623836151,-500.0,0.00019999,2]
[391504480,1760623836161,-500.0,0.00019999,2]
[391504481,1760623836170,-500.0,0.00019999,2]
[391504482,1760623836180,-500.0,0.00019999,2]
[391504483,1760623836189,-481.47853721,0.00019999,2]
[391504484,1760623836199,-574.0,0.0002,2]
[391504485,1760623836208,-500.0,0.0002,2]
[391504486,1760623836218,-500.0,0.0002,2]
[391504487,1760623836228,-500.0,0.0002,2]
[391504488,1760623836237,-530.82096844,0.0002,2]
[391504489,1760623836246,-500.0,0.0002,2]
[391504490,1760623836256,-500.0,0.0002,2]
[391504491,1760623836265,-500.0,0.0002,2]
[391504492,1760623836275,-500.0,0.0002,2]
[391504493,1760623836284,-500.0,0.0002,2]
[391504494,1760623836293,-500.0,0.0002,2]
[391504495,1760623836302,-500.0,0.0002,2]
[391504496,1760623836311,-500.0,0.0002,2]
[391504497,1760623836321,-500.0,0.0002,2]
[391504498,1760623836330,-500.0,0.0002,2]
[391504499,1760623836339,-500.0,0.0002,2]
[391504500,1760623836348,-500.0,0.0002,2]
[391504501,1760623836358,-650.17,0.0002,2]
[391504502,1760623836366,-500.0,0.0002,2]
[391504503,1760623836376,-618.32,0.0002,2]
[391504504,1760623836385,-500.0,0.0002,2]
[391504505,1760623836398,-500.0,0.0002,2]
[391504506,1760623836409,-500.0,0.0002,2]
[391504507,1760623836419,-500.0,0.0002,2]
[391504508,1760623836429,-712.0,0.00020067,2]
[391504509,1760623836439,-312.0,0.00020152,2]
[391504510,1760623836449,-312.0,0.0002016,2]
[391504511,1760623836459,-712.0,0.00020163,2]
[391504512,1760623836469,-353.52112482,0.00020173,2]
[391504513,1760623836479,-355.67,0.00020187,2]
[391504514,1760623836489,-712.0,0.00020205,2]
[391504515,1760623836498,-312.0,0.00020215,2]
[391504516,1760623836508,-310.6741041,0.00020215,2]
[391504517,1760623836518,-803.44324733,0.00020265,2]
[391504518,1760623836527,-500.0,0.00020272,2]
[391504519,1760623836538,-500.0,0.00020272,2]
[391504520,1760623836548,-500.0,0.00020272,2]
[391504521,1760623836559,-500.0,0.00020272,2]
[391504522,1760623836569,-373.69407907,0.00020273,2]
[391504523,1760623836580,-500.0,0.00020273,2]
[391504524,1760623836591,-343.50604072,0.00020273,2]
[391504525,1760623836604,-156.49395928,0.00020273,2]
[391504526,1760623836614,-843.5,0.00020273,2]
[391504527,1760623836624,-500.0,0.00020273,2]
[391504528,1760623836634,-500.0,0.00020273,2]
[391504529,1760623836644,-500.0,0.00020273,2]
[391504530,1760623836658,-500.0,0.00020273,2]
[391504531,1760623836669,-863.99,0.00020273,2]
[391504532,1760623836679,-500.0,0.00020273,2]
[391504533,1760623836689,-157.77,0.00020273,2]
[391504534,1760623836699,-500.0,0.00020273,2]
[391504535,1760623836709,-500.0,0.00020273,2]
[391504536,1760623836719,-500.0,0.00020273,2]
[391504537,1760623836728,-500.0,0.00020273,2]
[391504538,1760623836738,-500.0,0.00020273,2]
[391504539,1760623836749,-500.0,0.00020273,2]
[391504540,1760623836759,-1290.79,0.00020273,2]
[391504541,1760623836769,-500.0,0.00020273,2]
[391504542,1760623836779,-500.0,0.00020273,2]
[391504543,1760623836791,-500.0,0.00020273,2]
[391504544,1760623836803,-1264.56,0.00020273,2]
[391504545,1760623836813,-500.0,0.00020273,2]
[391504546,1760623836827,-942.55,0.00020273,2]
[391504547,1760623836837,-500.0,0.00020273,2]
[391504548,1760623836847,-500.0,0.00020273,2]
[391504549,1760623836858,-500.0,0.00020273,2]
[391504550,1760623836868,-500.0,0.00020273,2]
[391504551,1760623836877,-500.0,0.00020273,2]
[391504552,1760623836886,-500.0,0.00020273,2]
[391504553,1760623836901,-500.0,0.00020273,2]
[391504554,1760623836911,-500.0,0.00020273,2]
[391504555,1760623836921,-650.17,0.00020273,2]
[391504556,1760623836930,-500.0,0.00020273,2]
[391504557,1760623836940,-618.32,0.00020273,2]
[391504558,1760623836950,-500.0,0.00020273,2]
[391504559,1760623836960,-500.0,0.00020273,2]
[391504560,1760623836972,-500.0,0.00020273,2]
[391504561,1760623836982,-500.0,0.00020273,2]
[391504562,1760623836992,-1199.71155121,0.00020308,2]
[391504563,1760623837002,-312.0,0.00020312,2]
[391504564,1760623837012,-312.0,0.00020316,2]
[391504565,1760623837022,-168.0,0.00020342,2]
[391504566,1760623837032,-1000.0,0.00020377,2]
[391504567,1760623837043,-312.0,0.0002038,2]
[391504568,1760623837052,-312.0,0.00020382,2]
[391504569,1760623837062,-312.0,0.00020389,2]
[391504570,1760623837072,-312.0,0.0002043,2]
[391504571,1760623837083,-168.0,0.00020433,2]
[391504572,1760623837092,-165.01973466,0.00020447,2]
[391504573,1760623837102,-312.0,0.0002045,2]
[391504574,1760623837113,-312.0,0.00020459,2]
[391504575,1760623837123,-168.0,0.000205,2]
[391504576,1760623837132,-312.0,0.00020519,2]
[391504577,1760623837142,-312.0,0.00020525,2]
[391504578,1760623837156,-312.0,0.00020535,2]
[391504579,1760623837167,-500.0,0.00020546,2]
[391504580,1760623837176,-500.0,0.00020546,2]
[391504581,1760623837186,-500.0,0.00020546,2]
[391504582,1760623837195,-500.0,0.00020546,2]
[391504583,1760623837204,-153.517125,0.00020547,2]
[391504584,1760623837215,-500.0,0.00020547,2]
[391504585,1760623837225,-500.0,0.00020547,2]
[391504586,1760623837235,-601.67993935,0.00020547,2]
[391504587,1760623837248,-241.82006065,0.00020547,2]
[391504588,1760623837257,-500.0,0.00020547,2]
[391504589,1760623837267,-500.0,0.00020547,2]
[391504590,1760623837276,-500.0,0.00020547,2]
[391504591,1760623837287,-863.99,0.00020547,2]
[391504592,1760623837296,-500.0,0.00020547,2]
[391504593,1760623837306,-500.0,0.00020547,2]
[391504594,1760623837317,-500.0,0.00020547,2]
[391504595,1760623837327,-314.91411429,0.00020547,2]
[391504596,1760623837336,-500.0,0.00020547,2]
[391504597,1760623837346,-267.39954756,0.00020547,2]
[391504598,1760623837358,-232.60045244,0.00020547,2]
[391504599,1760623837368,-137.39954756,0.00020547,2]
[391504600,1760623837379,-335.26580545,0.00020547,2]
[391504601,1760623837391,-27.33464699,0.00020547,2]
[391504602,1760623837405,-1290.79,0.00020547,2]
[391504603,1760623837415,-500.0,0.00020547,2]
[391504604,1760623837424,-500.0,0.00020547,2]
[391504605,1760623837433,-500.0,0.00020547,2]
[391504606,1760623837446,-1264.56,0.00020547,2]
[391504607,1760623837456,-500.0,0.00020547,2]
[391504608,1760623837465,-942.55,0.00020547,2]
[391504609,1760623837475,-500.0,0.00020547,2]
[391504610,1760623837485,-500.0,0.00020547,2]
[391504611,1760623837495,-500.0,0.00020547,2]
[391504612,1760623837505,-500.0,0.00020547,2]
[391504613,1760623837515,-500.0,0.00020547,2]
[391504614,1760623837525,-500.0,0.00020547,2]
[391504615,1760623837534,-500.0,0.00020547,2]
[391504616,1760623837543,-500.0,0.00020547,2]
[391504617,1760623837553,-650.17,0.00020547,2]
[391504618,1760623837562,-500.0,0.00020547,2]
[391504619,1760623837572,-618.32,0.00020547,2]
[391504620,1760623837582,-500.0,0.00020547,2]
[391504621,1760623837592,-500.0,0.00020547,2]
[391504622,1760623837603,-500.0,0.00020547,2]
[391504623,1760623837612,-500.0,0.00020547,2]
[391504624,1760623837622,-156.16826361,0.00020547,7]
[391504625,1760623837631,-8550.15726578,0.00020624,2]
[391504626,1760623837640,-1220.0,0.000207,2]
[391504627,1760623837651,-168.0,0.00020743,2]
[391504628,1760623837660,-1600.0,0.00020776,2]
[391504629,1760623837670,-150.79,0.00020795,2]
[391504630,1760623837679,-712.0,0.00020804,2]
[391504631,1760623837689,-500.0,0.0002082,2]
[391504633,1760623837699,-500.0,0.0002082,2]
[391504634,1760623837708,-500.0,0.0002082,2]
[391504635,1760623837717,-500.0,0.0002082,2]
[391504636,1760623837727,-455.56498377,0.0002082,2]
[391504637,1760623837737,-500.0,0.00020821,2]
[391504638,1760623837747,-500.0,0.00020821,2]
[391504639,1760623837757,-843.5,0.00020821,2]
[391504640,1760623837767,-500.0,0.00020821,2]
[391504641,1760623837775,-500.0,0.00020821,2]
[391504642,1760623837784,-500.0,0.00020821,2]
[391504643,1760623837794,-863.99,0.00020821,2]
[391504644,1760623837804,-500.0,0.00020821,2]
[391504645,1760623837817,-500.0,0.00020821,2]
[391504646,1760623837832,-500.0,0.00020821,2]
[391504647,1760623837842,-500.0,0.00020821,2]
[391504648,1760623837852,-500.0,0.00020821,2]
[391504649,1760623837863,-500.0,0.00020821,2]
[391504650,1760623837872,-1290.79,0.00020821,2]
[391504651,1760623837883,-500.0,0.00020821,2]
[391504652,1760623837893,-500.0,0.00020821,2]
[391504653,1760623837907,-337.38944962,0.00020821,2]
[391504654,1760623837916,-1264.56,0.00020821,2]
[391504655,1760623837926,-500.0,0.00020821,2]
[391504656,1760623837935,-942.55,0.00020821,2]
[391504657,1760623837944,-500.0,0.00020821,2]
[391504658,1760623837954,-500.0,0.00020821,2]
[391504659,1760623837964,-500.0,0.00020821,2]
[391504660,1760623837974,-500.0,0.00020821,2]
[391504661,1760623837984,-500.0,0.00020821,2]
[391504662,1760623837994,-500.0,0.00020821,2]
[391504663,1760623838005,-500.0,0.00020821,2]
[391504664,1760623838015,-500.0,0.00020821,2]
[391504665,1760623838025,-650.17,0.00020821,2]
[391504666,1760623838034,-500.0,0.00020821,2]
[391504667,1760623838044,-618.32,0.00020821,2]
[391504668,1760623838054,-500.0,0.00020821,2]
[391504669,1760623838064,-500.0,0.00020821,2]
[391504670,1760623838074,-500.0,0.00020821,2]
[391504671,1760623838083,-500.0,0.00020821,2]
[391504672,1760623838093,-150.0,0.00020874,4]
[391504673,1760623838103,-204.17546537,0.00020878,2]
[391504674,1760623838114,-604.48488525,0.00020904,2]
[391504675,1760623838149,-198.95836208,0.00020904,2]
[391504676,1760623838159,-777.07563792,0.00020923,2]
[391504677,1760623838233,-422.63591329,0.00020923,2]
[391504678,1760623838243,-353.52112482,0.00020995,2]
[391504679,1760623838255,-20.8536962,0.00021,10]
[391504682,1760623840971,-552.94761363,0.00019802,2]
[391504683,1760623840981,-500.0,0.00019802,2]
[391504684,1760623840991,-350.67446203,0.00019802,2]
[391504685,1760623841000,-659.59105,0.0002,2]
[391504686,1760623841010,-1329.1463038,0.00021,10]
[391504687,1760623841019,-43703.5240002,0.00021005,2]
[391504688,1760623841029,-434.4844535,0.00021017,2]
[391504689,1760623841039,-168.0,0.00021046,2]
[391504690,1760623841049,-500.0,0.00021095,2]
[391504691,1760623841060,-500.0,0.00021095,2]
[391504692,1760623841070,-843.5,0.00021095,2]
[391504693,1760623841080,-500.0,0.00021095,2]
[391504694,1760623841090,-500.0,0.00021095,2]
[391504695,1760623841101,-500.0,0.00021095,2]
[391504696,1760623841111,-863.99,0.00021095,2]
[391504697,1760623841120,-500.0,0.00021095,2]
[391504698,1760623841130,-500.0,0.00021095,2]
[391504699,1760623841140,-500.0,0.00021095,2]
[391504700,1760623841152,-500.0,0.00021095,2]
[391504701,1760623841162,-500.0,0.00021095,2]
[391504702,1760623841172,-500.0,0.00021095,2]
[391504703,1760623841182,-1290.79,0.00021095,2]
[391504704,1760623841192,-500.0,0.00021095,2]
[391504705,1760623841202,-500.0,0.00021095,2]
[391504706,1760623841212,-1264.56,0.00021095,2]
[391504707,1760623841222,-500.0,0.00021095,2]
[391504708,1760623841232,-942.55,0.00021095,2]
[391504709,1760623841242,-500.0,0.00021095,2]
[391504710,1760623841252,-588.32490472,0.00021095,2]
[391504711,1760623841262,-500.0,0.00021095,2]
[391504712,1760623841273,-500.0,0.00021095,2]
[391504713,1760623841283,-500.0,0.00021095,2]
[391504714,1760623841292,-500.0,0.00021095,2]
[391504715,1760623841302,-458.96716134,0.00021095,2]
[391504716,1760623841312,-500.0,0.00021095,2]
[391504717,1760623841322,-650.17,0.00021095,2]
[391504718,1760623841332,-500.0,0.00021095,2]
[391504719,1760623841342,-618.32,0.00021095,2]
[391504720,1760623841352,-500.0,0.00021095,2]
[391504721,1760623841362,-500.0,0.00021095,2]
[391504722,1760623841376,-500.0,0.00021095,2]
[391504723,1760623841386,-150.41,0.00021096,2]
[391504724,1760623841396,-712.0,0.00021348,2]
[391504725,1760623841408,-153.517125,0.00021369,2]
[391504726,1760623841418,-500.0,0.00021369,2]
[391504727,1760623841427,-500.0,0.00021369,2]
[391504728,1760623841438,-843.5,0.00021369,2]
[391504729,1760623841448,-500.0,0.00021369,2]
[391504730,1760623841458,-500.0,0.00021369,2]
[391504731,1760623841468,-288.1780467,0.00021369,2]
[391504732,1760623841478,-863.99,0.00021369,2]
[391504733,1760623841488,-500.0,0.00021369,2]
[391504734,1760623841498,-500.0,0.00021369,2]
[391504735,1760623841508,-500.0,0.00021369,2]
[391504736,1760623841822,-175.34585757,0.00021369,2]
[391504737,1760623841843,-500.0,0.00021369,2]
[391504738,1760623841854,-500.0,0.00021369,2]
[391504739,1760623841865,-257.30675573,0.00021369,2]
[391504740,1760623841877,-424.88308538,0.00021369,2]
[391504772,1760623842432,-608.60015889,0.00021369,2]
[391504774,1760623842443,-28.74736353,0.00021369,2]
[391504780,1760623842495,-471.25263647,0.00021369,2]
[391504782,1760623842504,-84.29736353,0.00021369,2]
[391504784,1760623842516,-415.70263647,0.00021369,2]
[391504786,1760623842526,-1057.4312035,0.00021369,2]
[391504788,1760623842537,-207.1287965,0.00021369,2]
[391504790,1760623842549,-500.0,0.00021369,2]
[391504792,1760623842558,-842.8712035,0.00021369,2]
[391504794,1760623842570,-99.6787965,0.00021369,2]
[391504796,1760623842580,-500.0,0.00021369,2]
[391504798,1760623842589,-500.0,0.00021369,2]
[391504800,1760623842598,-500.0,0.00021369,2]